bitfinex/quotes_BTCUSD_20230405
["timestamp","ask_amount","ask_price","bid_price","bid_amount"]
[1680721018604,0.79018499,27987.0,27985.0,0.3]
[1680721018806,0.79052508,27987.0,27985.0,0.03571128]
[1680721019851,0.78352508,27987.0,27984.0,0.59942932]
[1680721020901,0.78352508,27987.0,27984.0,0.42832685]
[1680721021110,0.78452508,27987.0,27984.0,0.42832685]
[1680721021561,0.78452508,27987.0,27985.0,0.12832685]
[1680721021770,0.78452508,27987.0,27985.0,0.42832685]
[1680721021980,0.78452508,27987.0,27985.0,0.3]
[1680721022817,0.78352508,27987.0,27985.0,0.3]
[1680721025829,0.78352508,27987.0,27985.0,0.42832685]
[1680721027579,0.78352508,27987.0,27985.0,0.3]
[1680721031642,0.02184528,27987.0,27985.0,0.3]
[1680721031843,0.02150519,27987.0,27985.0,0.42832685]
[1680721032476,0.39838131,27989.0,27985.0,0.42832685]
[1680721032676,0.35471056,27988.0,27985.0,0.42832685]
[1680721032997,0.35505065,27988.0,27985.0,0.3]
[1680721033407,0.02038854,27987.0,27985.0,0.3]
[1680721034042,0.02038854,27987.0,27985.0,0.42832685]
[1680721036508,0.02781818,27987.0,27985.0,0.42832685]
[1680721037544,0.02781818,27987.0,27985.0,0.3]
[1680721038414,0.02781818,27987.0,27985.0,0.42832685]
[1680721038861,0.02770524,27987.0,27985.0,0.42850685]
[1680721039488,0.02870524,27987.0,27985.0,0.42850685]
[1680721040404,0.02770524,27987.0,27985.0,0.42850685]
[1680721040615,0.02870524,27987.0,27985.0,0.42850685]
[1680721041234,0.02870524,27987.0,27985.0,0.42832685]
[1680721041447,0.02870524,27987.0,27985.0,0.50452685]
[1680721042006,0.02870524,27987.0,27985.0,0.42832685]
[1680721046282,0.02870524,27987.0,27985.0,0.50472685]
[1680721046944,0.02870524,27987.0,27985.0,0.42832685]
[1680721047364,0.001,27987.0,27985.0,0.42832685]
[1680721048388,0.001,27987.0,27985.0,0.50452685]
[1680721050401,0.3449413,27987.0,27985.0,0.42832685]
[1680721050657,0.050839,27986.0,27985.0,0.42850685]
[1680721052016,0.3449413,27987.0,27985.0,0.42850685]
[1680721052227,0.052898,27986.0,27985.0,0.42850685]
[1680721052435,0.08073712,27986.0,27985.0,0.42850685]
[1680721052624,0.02883912,27986.0,27985.0,0.42850685]
[1680721052839,0.02783912,27986.0,27985.0,0.42850685]
[1680721053045,0.08000412,27986.0,27985.0,0.42850685]
[1680721053486,0.08100412,27986.0,27985.0,0.42850685]
[1680721053691,0.02883912,27986.0,27985.0,0.42850685]
[1680721053896,0.02883912,27986.0,27985.0,0.59960932]
[1680721054339,0.02883912,27986.0,27985.0,0.42850685]
[1680721054752,0.02883912,27986.0,27985.0,0.59960932]
[1680721055616,0.02883912,27986.0,27985.0,0.47128247]
[1680721058088,0.02883912,27986.0,27985.0,0.6851263]
[1680721058511,0.02883912,27986.0,27985.0,0.47128247]
[1680721059740,0.02877484,27986.0,27985.0,0.47110247]
[1680721060619,0.02877484,27986.0,27985.0,0.6849463]
[1680721060830,0.02877484,27986.0,27985.0,0.47110247]
[1680721063611,0.02877484,27986.0,27985.0,0.68486574]
[1680721063823,0.02877484,27986.0,27985.0,0.37621944]
[1680721064033,0.02877484,27986.0,27985.0,0.0763]
[1680721064257,0.02877484,27986.0,27985.0,0.0848]
[1680721064496,0.001,27986.0,27985.0,0.1848]
[1680721065142,0.00034009,27991.0,27985.0,0.2613]
[1680721065352,0.001,27986.0,27985.0,0.4719]
[1680721065585,0.00034009,27992.0,27985.0,0.9172]
[1680721065867,0.35505065,27992.0,27988.0,0.24730055]
[1680721066088,0.00034009,27992.0,27991.0,0.0762]
[1680721066298,0.38962596,27994.0,27991.0,0.0762]
[1680721066502,0.35505065,27994.0,27991.0,0.0762]
[1680721066925,0.00034009,27994.0,27991.0,0.3]
[1680721067356,0.00034009,27994.0,27991.0,0.3763]
[1680721067563,0.00034009,27994.0,27992.0,0.0085]
[1680721068206,0.02134009,27994.0,27992.0,0.0085]
[1680721068384,0.00034009,27994.0,27992.0,0.0085]
[1680721068600,0.02134009,27994.0,27992.0,0.0095]
[1680721069443,0.02812735,27993.0,27992.0,0.0095]
[1680721070515,0.02812735,27993.0,27992.0,0.0085]
[1680721070733,0.04912735,27993.0,27992.0,0.0095]
[1680721071913,0.04912735,27993.0,27992.0,0.0857]
[1680721074837,0.04912735,27993.0,27992.0,0.0095]
[1680721077999,0.04912735,27993.0,27992.0,0.001]
[1680721078234,0.04946744,27993.0,27992.0,0.001]
[1680721078417,0.04912735,27993.0,27992.0,0.001]
[1680721084534,0.021,27993.0,27992.0,0.001]
[1680721085559,0.03960202,27993.0,27992.0,0.001]
[1680721085984,0.09067302,27993.0,27992.0,0.001]
[1680721086193,0.03960202,27993.0,27992.0,0.001]
[1680721088673,0.7580495,27993.0,27992.0,0.001]
[1680721088877,0.8091945,27993.0,27992.0,0.001]
[1680721090305,0.7580495,27993.0,27992.0,0.001]
[1680721090680,0.8088995,27993.0,27992.0,0.001]
[1680721095383,0.7580495,27993.0,27992.0,0.001]
[1680721095590,0.8101915,27993.0,27992.0,0.001]
[1680721095776,0.7580495,27993.0,27992.0,0.001]
[1680721096421,0.03960202,27993.0,27992.0,0.001]
[1680721097815,0.38522626,27992.0,27988.0,0.35695714]
[1680721098023,0.52746316,27992.0,27989.0,0.0847]
[1680721098225,0.38556635,27992.0,27989.0,0.0847]
[1680721100007,0.00034009,27992.0,27991.0,0.076]
[1680721100220,0.001,27992.0,27991.0,0.0845]
[1680721100411,0.38493411,27993.0,27991.0,0.0085]
[1680721100624,0.002,27992.0,27991.0,0.0085]
[1680721100834,0.00234009,27992.0,27991.0,0.0085]
[1680721100971,0.00034009,27992.0,27991.0,0.0085]
[1680721101379,0.01992248,27992.0,27991.0,0.0135]
[1680721102205,0.01892248,27992.0,27991.0,0.0085]
[1680721102624,0.01858239,27992.0,27991.0,0.0085]
[1680721102829,0.01958239,27992.0,27991.0,0.0135]
[1680721106488,0.01958239,27992.0,27991.0,0.04833736]
[1680721106688,0.01958239,27992.0,27991.0,0.0135]
[1680721108338,0.01958239,27992.0,27991.0,0.14197541]
[1680721108544,0.01958239,27992.0,27991.0,0.44197541]
[1680721109326,0.01992248,27992.0,27991.0,0.44197541]
[1680721109533,0.01992248,27992.0,27991.0,0.47764258]
[1680721110563,0.01992248,27992.0,27991.0,0.52046772]
[1680721110781,0.01992248,27992.0,27991.0,0.99440342]
[1680721110999,0.01958239,27992.0,27991.0,1.23101391]
[1680721111253,0.01958239,27992.0,27991.0,1.21317773]
[1680721111471,0.001,27992.0,27991.0,1.21317773]
[1680721111907,0.00034009,27996.0,27991.0,1.20817773]
[1680721112121,0.002,27992.0,27991.0,1.07327773]
[1680721112335,0.00034009,27996.0,27991.0,1.13167773]
[1680721112555,0.002,27992.0,27991.0,1.07327773]
[1680721112762,0.002,27992.0,27991.0,1.14977773]
[1680721113374,0.00034009,27996.0,27992.0,0.1]
[1680721113586,0.00234009,27996.0,27993.0,0.3081876]
[1680721113794,0.00034009,27996.0,27993.0,0.3081876]
[1680721114425,0.02787267,27995.0,27993.0,0.3261876]
[1680721114632,0.02821276,27995.0,27993.0,0.15493754]
[1680721114845,0.02821276,27995.0,27993.0,0.6261876]
[1680721115256,0.02821276,27995.0,27993.0,0.6081876]
[1680721115424,0.00034009,27995.0,27993.0,0.6081876]
[1680721115836,0.00034009,27995.0,27993.0,0.43693754]
[1680721116234,0.00234009,27995.0,27993.0,0.45493754]
[1680721116926,0.00034009,27995.0,27993.0,0.43693754]
[1680721117136,0.00234009,27995.0,27993.0,0.45493754]
[1680721117879,0.34320309,27995.0,27993.0,0.45493754]
[1680721118316,0.01856215,27994.0,27993.0,0.45493754]
[1680721118698,0.01890224,27994.0,27993.0,0.3265]
[1680721119445,0.00034009,27994.0,27993.0,0.3085]
[1680721119660,0.00234009,27994.0,27993.0,0.45493754]
[1680721120513,0.02090224,27994.0,27993.0,0.45493754]
[1680721120724,0.02056215,27994.0,27993.0,0.45493754]
[1680721125829,0.02056215,27994.0,27993.0,0.3265]
[1680721126415,0.02056215,27994.0,27993.0,0.45493754]
[1680721128496,0.002,27994.0,27993.0,0.45493754]
[1680721128926,0.002,27994.0,27993.0,0.49775006]
[1680721129356,0.002,27994.0,27993.0,0.57425006]
[1680721134662,0.002,27994.0,27993.0,0.45481529]
[1680721135734,0.002,27994.0,27993.0,0.45499529]
[1680721136134,0.002,27994.0,27993.0,0.45481529]
[1680721144455,0.02387001,28001.0,27993.0,0.80952585]
[1680721144676,0.01230083,28004.0,28000.0,0.35471056]
[1680721144902,0.01473001,28007.0,28001.0,0.4085]
[1680721145119,0.00574315,28007.0,28005.0,0.21382667]
[1680721145343,0.00574315,28007.0,28006.0,0.436796]
[1680721145560,0.00574315,28007.0,28006.0,0.55606134]
[1680721145776,0.00574315,28007.0,28006.0,0.38518]
[1680721145995,0.00574315,28007.0,28006.0,0.59898022]
[1680721146425,0.02000505,28012.0,28006.0,0.47050227]
[1680721146658,0.02000505,28012.0,28007.0,0.0765]
[1680721146872,0.02000505,28012.0,28008.0,0.0085]
[1680721148036,0.02000505,28012.0,28009.0,0.04590297]
[1680721148243,0.02000505,28012.0,28010.0,0.0085]
[1680721149737,0.02000505,28012.0,28011.0,0.05813484]
[1680721150590,0.02000505,28012.0,28011.0,0.06013484]
[1680721151899,0.02000505,28012.0,28011.0,0.002]
[1680721152088,0.45121561,28012.0,28011.0,0.01840278]
[1680721152299,0.80092069,28012.0,28011.0,0.01840278]
[1680721152520,0.80062069,28012.0,28011.0,0.01840278]
[1680721152740,0.80092069,28012.0,28011.0,0.01840278]
[1680721157067,0.85261469,28012.0,28011.0,0.01840278]
[1680721157283,0.80092069,28012.0,28011.0,0.01840278]
[1680721158519,0.85193569,28012.0,28011.0,0.01840278]
[1680721160723,0.80092069,28012.0,28011.0,0.01840278]
[1680721161471,0.85356569,28012.0,28011.0,0.01840278]
[1680721162477,0.37501561,28012.0,28011.0,0.01840278]
[1680721162684,0.37501561,28012.0,28011.0,0.08098827]
[1680721162885,0.37501561,28012.0,28011.0,0.01840278]
[1680721163716,0.02030505,28012.0,28011.0,0.07234487]
[1680721163925,0.02000505,28012.0,28011.0,0.07234487]
[1680721164552,0.02030505,28012.0,28011.0,0.07234487]
[1680721164765,0.02030505,28012.0,28011.0,0.01840278]
[1680721164975,0.02000505,28012.0,28011.0,0.01840278]
[1680721165369,0.02030505,28012.0,28011.0,0.01840278]
[1680721166213,0.02030505,28012.0,28011.0,0.07809979]
[1680721166423,0.02030505,28012.0,28011.0,0.01840278]
[1680721166629,0.02000505,28012.0,28011.0,0.01840278]
[1680721167043,0.02030505,28012.0,28011.0,0.01840278]
[1680721168103,0.34265078,28012.0,28011.0,0.01840278]
[1680721168543,0.77356134,28012.0,28011.0,0.01840278]
[1680721168761,0.82581434,28012.0,28011.0,0.01840278]
[1680721169411,0.03376001,28013.0,28011.0,0.37311334]
[1680721169628,0.02494001,28013.0,28012.0,0.5525]
[1680721169839,0.02494001,28013.0,28012.0,0.461]
[1680721170061,0.02494001,28013.0,28012.0,0.561]
[1680721170269,0.02494001,28013.0,28012.0,0.46304]
[1680721170480,0.02494001,28013.0,28012.0,0.85946674]
[1680721170726,0.00428652,28013.0,28012.0,1.62366674]
[1680721170935,0.00428652,28013.0,28012.0,1.35964045]
[1680721171153,0.00428652,28013.0,28012.0,1.11568674]
[1680721171378,0.00428652,28013.0,28012.0,1.22018674]
[1680721171574,0.00428652,28013.0,28012.0,1.11598674]
[1680721171810,0.00428652,28013.0,28012.0,1.12615056]
[1680721172283,0.00428652,28013.0,28012.0,1.04965056]
[1680721172688,0.00428652,28013.0,28012.0,0.78538228]
[1680721172918,0.00428652,28013.0,28012.0,0.76735181]
[1680721173121,0.00428652,28013.0,28012.0,0.69325056]
[1680721173792,0.00428652,28013.0,28012.0,0.79325056]
[1680721174004,0.00428652,28013.0,28012.0,0.87815056]
[1680721174206,0.00428652,28013.0,28012.0,1.23455056]
[1680721175892,0.00428652,28013.0,28012.0,1.13455056]
[1680721176283,0.00374436,28013.0,28012.0,1.13455056]
[1680721177031,0.00374436,28013.0,28012.0,1.10655056]
[1680721177235,0.00374436,28013.0,28012.0,1.13455056]
[1680721177675,0.00374436,28013.0,28012.0,1.31303056]
[1680721177872,0.00374436,28013.0,28012.0,1.41303056]
[1680721178080,0.0088897,28014.0,28013.0,0.1]
[1680721178293,0.0088897,28014.0,28013.0,0.46381217]
[1680721178519,0.0088897,28014.0,28013.0,1.12225217]
[1680721179593,0.02387001,28015.0,28013.0,1.12225217]
[1680721179594,0.00275971,28015.0,28013.0,1.15025217]
[1680721179807,0.00275971,28015.0,28014.0,0.74771056]
[1680721180030,0.00275971,28015.0,28014.0,0.74975056]
[1680721180929,0.00275971,28015.0,28014.0,1.10615056]
[1680721181339,0.00275971,28015.0,28014.0,1.13415056]
[1680721181539,0.00275971,28015.0,28014.0,1.22238968]
[1680721181744,0.00275971,28015.0,28014.0,0.79478939]
[1680721182173,0.00275971,28015.0,28014.0,0.69325056]
[1680721182585,0.00275971,28015.0,28014.0,0.41368097]
[1680721182797,0.00275971,28015.0,28014.0,0.14168097]
[1680721183003,0.00275971,28015.0,28014.0,0.11368097]
[1680721183209,0.00275971,28015.0,28014.0,0.14168097]
[1680721183633,0.00275971,28015.0,28014.0,0.11368097]
[1680721183840,0.00275971,28015.0,28014.0,0.14005389]
[1680721184049,0.00275971,28015.0,28014.0,0.43801389]
[1680721184264,0.00275971,28015.0,28014.0,0.46601389]
[1680721184464,0.00275971,28015.0,28014.0,0.16601389]
[1680721185784,0.00275971,28015.0,28014.0,0.17451389]
[1680721186588,0.00275971,28015.0,28014.0,0.17655389]
[1680721187007,0.00275971,28015.0,28014.0,0.17451389]
[1680721187753,0.00275971,28015.0,28014.0,0.07137292]
[1680721187988,0.00275971,28015.0,28014.0,0.15229558]
[1680721189263,0.00275971,28015.0,28014.0,0.07341292]
[1680721190080,0.00275971,28015.0,28014.0,0.46162142]
[1680721194166,0.00275971,28015.0,28014.0,0.37341292]
[1680721195231,0.00275971,28015.0,28014.0,0.72812348]
[1680721196460,0.00275971,28015.0,28014.0,0.83119581]
[1680721196895,0.00275971,28015.0,28014.0,0.84010585]
[1680721198529,0.00275971,28015.0,28014.0,0.48539529]
[1680721199646,0.00275971,28015.0,28014.0,0.48335529]
[1680721200067,0.00275971,28015.0,28014.0,0.48539529]
[1680721200272,0.00275971,28015.0,28014.0,0.48335529]
[1680721200486,0.00275971,28015.0,28014.0,0.48539529]
[1680721200899,0.00275971,28015.0,28014.0,0.48335529]
[1680721201112,0.00275971,28015.0,28014.0,0.41198237]
[1680721201334,0.00275971,28015.0,28014.0,0.18133549]
[1680721201556,0.00275971,28015.0,28014.0,0.00891004]
[1680721201557,0.43944247,28015.0,28014.0,0.00891004]
[1680721201778,0.43953247,28015.0,28014.0,0.00891004]
[1680721201998,0.00305971,28015.0,28014.0,0.00891004]
[1680721202209,0.00275971,28015.0,28014.0,0.00891004]
[1680721203333,0.00275971,28015.0,28014.0,0.01741004]
[1680721203763,0.00275971,28015.0,28014.0,0.1087403]
[1680721203976,0.00375971,28015.0,28014.0,0.1157403]
[1680721204818,0.00275971,28015.0,28014.0,0.1087403]
[1680721205028,0.00375971,28015.0,28014.0,0.1177403]
[1680721205235,0.00375971,28015.0,28014.0,0.4177403]
[1680721205460,0.00375971,28015.0,28014.0,0.1177403]
[1680721205671,0.00375971,28015.0,28014.0,0.3811206]
[1680721205883,0.00375971,28015.0,28014.0,0.6811206]
[1680721206102,0.00375971,28015.0,28014.0,0.7811206]
[1680721206534,0.00375971,28015.0,28014.0,0.86881867]
[1680721206935,0.00375971,28015.0,28014.0,0.86644287]
[1680721207186,0.00375971,28015.0,28014.0,1.22284287]
[1680721208297,0.00375971,28015.0,28014.0,1.350004]
[1680721208748,0.00375971,28015.0,28014.0,1.34240979]
[1680721208960,0.00375971,28015.0,28014.0,1.40284964]
[1680721209176,0.00375971,28015.0,28014.0,1.65881644]
[1680721209395,0.00375971,28015.0,28014.0,1.44551077]
[1680721209610,0.00375971,28015.0,28014.0,1.65881644]
[1680721210252,0.00375971,28015.0,28014.0,1.42767459]
[1680721210457,0.00375971,28015.0,28014.0,1.47033573]
[1680721211097,0.00375971,28015.0,28014.0,1.55499389]
[1680721211331,0.00375971,28015.0,28014.0,1.47033573]
[1680721211766,0.00375971,28015.0,28014.0,1.54545389]
[1680721211980,0.00375971,28015.0,28014.0,1.54545551]
[1680721212199,0.00375971,28015.0,28014.0,1.1890558]
[1680721212408,0.00375971,28015.0,28014.0,1.01824706]
[1680721213054,0.00375971,28015.0,28014.0,1.11824706]
[1680721213460,0.00375971,28015.0,28014.0,1.02943573]
[1680721213912,0.00375971,28015.0,28014.0,1.11165458]
[1680721214320,0.00375971,28015.0,28014.0,0.89834891]
[1680721214738,0.00375971,28015.0,28014.0,0.79834891]
[1680721216097,0.00375971,28015.0,28014.0,0.89834891]
[1680721216312,0.00375971,28015.0,28014.0,0.79834891]
[1680721217411,0.00375971,28015.0,28014.0,1.15541958]
[1680721218878,0.00375971,28015.0,28014.0,0.79834891]
[1680721219248,0.00375971,28015.0,28014.0,0.89834891]
[1680721219449,0.00375971,28015.0,28014.0,0.81613006]
[1680721219645,0.00375971,28015.0,28014.0,1.07320073]
[1680721220261,0.00375971,28015.0,28014.0,0.81613006]
[1680721221594,0.00375971,28015.0,28014.0,0.9160524]
[1680721221794,0.00375971,28015.0,28014.0,0.79875719]
[1680721222215,0.00375971,28015.0,28014.0,0.71613006]
[1680721222784,0.00375971,28015.0,28014.0,0.81613006]
[1680721225397,0.00365488,28015.0,28014.0,0.71613006]
[1680721226032,0.00365488,28015.0,28014.0,0.79677864]
[1680721226435,0.00365488,28015.0,28014.0,0.71613006]
[1680721227476,0.00365488,28015.0,28014.0,0.70559565]
[1680721228594,0.00365488,28015.0,28014.0,0.72179137]
[1680721228818,0.00365488,28015.0,28014.0,1.07819137]
[1680721229421,0.00365488,28015.0,28014.0,1.33526204]
[1680721229899,0.00265488,28015.0,28014.0,1.34376204]
[1680721230126,0.00465488,28015.0,28014.0,1.35676204]
[1680721230342,0.00265488,28015.0,28014.0,1.34376204]
[1680721230562,0.00465488,28015.0,28014.0,1.09969137]
[1680721230777,0.00265488,28015.0,28014.0,1.08669137]
[1680721230992,0.00465488,28015.0,28014.0,1.35676204]
[1680721231220,0.00265488,28015.0,28014.0,1.34376204]
[1680721231665,0.00465488,28015.0,28014.0,1.35676204]
[1680721232732,0.00265488,28015.0,28014.0,1.34376204]
[1680721232972,0.00465488,28015.0,28014.0,1.35676204]
[1680721233179,0.00265488,28015.0,28014.0,1.34376204]
[1680721233384,0.00465488,28015.0,28014.0,1.35676204]
[1680721236585,0.00923148,28016.0,28014.0,1.25676204]
[1680721236837,0.00923148,28016.0,28015.0,0.32490044]
[1680721237045,0.00923148,28016.0,28015.0,1.02158167]
[1680721237260,0.00923148,28016.0,28015.0,1.264211]
[1680721237479,0.00051954,28016.0,28015.0,1.66138314]
[1680721237689,0.00051954,28016.0,28015.0,2.09308314]
[1680721238127,0.00051954,28016.0,28015.0,2.16978314]
[1680721238334,0.00051954,28016.0,28015.0,2.56978314]
[1680721238928,1e-08,28024.0,28016.0,0.1]
[1680721239165,1e-08,28024.0,28023.0,0.0854245]
[1680721239407,1e-08,28024.0,28023.0,0.67110632]
[1680721239618,1e-08,28024.0,28023.0,0.67960632]
[1680721240038,1e-08,28024.0,28023.0,0.75590632]
[1680721240248,1e-08,28024.0,28023.0,1.12030632]
[1680721242346,1e-08,28024.0,28023.0,1.04400632]
[1680721242552,0.02383002,28027.0,28023.0,1.04418632]
[1680721242754,0.02383002,28027.0,28024.0,0.091147]
[1680721242957,0.02383002,28027.0,28025.0,0.01639459]
[1680721243136,0.02383002,28027.0,28026.0,0.0085]
[1680721243832,0.02383002,28027.0,28026.0,0.08427917]
[1680721245098,0.02383002,28027.0,28026.0,0.08527917]
[1680721245313,0.02483002,28027.0,28026.0,0.08527917]
[1680721249768,0.02483002,28027.0,28026.0,0.0095]
[1680721250545,0.02483002,28027.0,28026.0,0.0135]
[1680721250946,0.02383002,28027.0,28026.0,0.0125]
[1680721251147,0.02483002,28027.0,28026.0,0.0125]
[1680721251907,0.40748524,28027.0,28026.0,0.004]
[1680721252444,0.40648524,28027.0,28026.0,0.004]
[1680721252653,0.10963002,28027.0,28026.0,0.005]
[1680721252857,0.46313838,28027.0,28026.0,0.005]
[1680721254721,0.37833838,28027.0,28026.0,0.005]
[1680721256010,0.37733838,28027.0,28026.0,0.004]
[1680721256210,0.46203838,28027.0,28026.0,0.004]
[1680721256909,0.46303838,28027.0,28026.0,0.004]
[1680721257117,0.81674894,28027.0,28026.0,0.004]
[1680721257333,0.86974994,28027.0,28026.0,0.004]
[1680721257752,0.87074994,28027.0,28026.0,0.005]
[1680721259656,0.81774894,28027.0,28026.0,0.005]
[1680721260291,0.83200438,28027.0,28026.0,0.005]
[1680721260498,0.88519138,28027.0,28026.0,0.005]
[1680721261306,0.83200438,28027.0,28026.0,0.005]
[1680721261706,0.88473238,28027.0,28026.0,0.005]
[1680721263668,0.83200438,28027.0,28026.0,0.005]
[1680721264877,0.88312338,28027.0,28026.0,0.004]
[1680721265079,0.88412338,28027.0,28026.0,0.004]
[1680721265284,0.83200438,28027.0,28026.0,0.004]
[1680721265873,0.83189704,28027.0,28026.0,0.004]
[1680721267127,0.83089704,28027.0,28026.0,0.004]
[1680721267369,0.74719704,28027.0,28026.0,0.005]
[1680721267940,0.74619704,28027.0,28026.0,0.004]
[1680721269003,0.74719704,28027.0,28026.0,0.004]
[1680721271710,0.74619704,28027.0,28026.0,0.004]
[1680721271922,0.79914304,28027.0,28026.0,0.005]
[1680721272131,0.79814304,28027.0,28026.0,0.004]
[1680721272350,0.88294304,28027.0,28026.0,0.004]
[1680721272575,0.88394304,28027.0,28026.0,0.004]
[1680721272766,0.88294304,28027.0,28026.0,0.004]
[1680721272964,0.88394304,28027.0,28026.0,0.005]
[1680721273165,0.88294304,28027.0,28026.0,0.005]
[1680721276480,0.88294304,28027.0,28026.0,0.001]
[1680721278000,0.87894304,28027.0,28026.0,0.001]
[1680721286346,0.38868868,28027.0,28026.0,0.001]
[1680721286793,0.44080468,28027.0,28026.0,0.001]
[1680721287006,0.38868868,28027.0,28026.0,0.001]
[1680721287445,0.03397812,28027.0,28026.0,0.001]
[1680721287680,0.03397812,28027.0,28026.0,0.10343104]
[1680721288339,0.03397812,28027.0,28026.0,0.0095]
[1680721289442,0.03397812,28027.0,28026.0,0.001]
[1680721289867,0.47776132,28027.0,28026.0,0.001]
[1680721290082,0.88617988,28027.0,28026.0,0.001]
[1680721290774,0.52699668,28027.0,28026.0,0.001]
[1680721291002,1.17823591,28027.0,28026.0,0.001]
[1680721291222,1.3491608,28027.0,28026.0,0.001]
[1680721291442,1.77051617,28027.0,28026.0,0.001]
[1680721292137,1.76951617,28027.0,28025.0,0.01639459]
[1680721292354,0.87556096,28026.0,28025.0,0.01639459]
[1680721292569,1.00044396,28026.0,28025.0,0.01639459]
[1680721293007,1.25191173,28026.0,28025.0,0.01639459]
[1680721293498,1.68323847,28026.0,28025.0,0.01639459]
[1680721293725,1.18054973,28026.0,28025.0,0.01839459]
[1680721293937,1.17964973,28026.0,28025.0,0.01639459]
[1680721294217,2.0115138,28026.0,28025.0,0.01839459]
[1680721294437,0.1,28025.0,28018.0,6e-05]
[1680721294646,0.0848,28019.0,28017.0,0.00018]
[1680721294831,0.63381637,28018.0,28017.0,0.00018]
[1680721295300,0.49191956,28018.0,28017.0,0.00018]
[1680721296163,0.50491956,28018.0,28017.0,0.00218]
[1680721297029,0.89803031,28018.0,28017.0,0.00218]
[1680721297675,0.68800259,28018.0,28017.0,0.00218]
[1680721297895,0.89496799,28018.0,28017.0,0.00206]
[1680721298128,0.89496799,28018.0,28017.0,0.002]
[1680721298780,0.88196799,28018.0,28014.0,0.00018]
[1680721298997,0.054731,28017.0,28014.0,0.00018]
[1680721299223,0.35471056,28016.0,28014.0,0.00012]
[1680721299452,0.054227,28015.0,28013.0,0.00018]
[1680721299666,0.35471056,28014.0,28013.0,0.00018]
[1680721299888,0.40604856,28014.0,28013.0,0.00018]
[1680721300102,0.40604856,28014.0,28013.0,0.0733039]
[1680721300595,0.051338,28014.0,28013.0,0.00018]
[1680721300806,0.027,28017.0,28013.0,0.00018]
[1680721301018,0.40622756,28016.0,28013.0,0.00012]
[1680721301229,0.021,28014.0,28013.0,0.10210675]
[1680721301437,0.054795,28014.0,28013.0,0.10210675]
[1680721301651,0.052476,28015.0,28013.0,0.10210675]
[1680721301879,0.40718656,28015.0,28013.0,0.10210675]
[1680721302101,0.051227,28014.0,28013.0,0.10210675]
[1680721302307,0.072227,28014.0,28013.0,0.10210675]
[1680721302520,0.051227,28014.0,28013.0,0.10210675]
[1680721302963,0.0758,28018.0,28014.0,0.07948137]
[1680721303174,0.40649356,28017.0,28014.0,0.07966137]
[1680721303399,0.052243,28016.0,28014.0,0.07966137]
[1680721304489,0.079243,28016.0,28014.0,0.07966137]
[1680721304663,0.049012,28015.0,28014.0,0.07966137]
[1680721306858,0.05139,28014.0,28013.0,0.09452853]
[1680721307915,0.07239,28014.0,28013.0,0.09452853]
[1680721308337,0.47393882,28014.0,28013.0,0.00018]
[1680721310278,0.82864938,28014.0,28013.0,0.00018]
[1680721315155,0.90444938,28014.0,28013.0,0.00018]
[1680721315789,0.88344938,28014.0,28013.0,0.00018]
[1680721316037,0.91044938,28014.0,28013.0,0.00018]
[1680721316246,0.88344938,28014.0,28013.0,0.00018]
[1680721316455,0.91044938,28014.0,28013.0,0.00012]
[1680721316659,0.91044938,28014.0,28013.0,0.00018]
[1680721316867,0.88344938,28014.0,28013.0,0.00018]
[1680721317092,0.91044938,28014.0,28013.0,0.00018]
[1680721317274,0.83464938,28014.0,28013.0,0.00018]
[1680721318083,0.83457798,28014.0,28010.0,0.09600436]
[1680721318319,0.40846856,28013.0,28010.0,0.09600436]
[1680721318504,0.35471056,28013.0,28010.0,0.09600436]
[1680721318739,0.053111,28012.0,28010.0,0.09600436]
[1680721318922,0.35471056,28011.0,28010.0,0.09600436]
[1680721320009,0.40507256,28011.0,28010.0,0.09600436]
[1680721320639,0.42607256,28011.0,28010.0,0.09600436]
[1680721321092,0.42607256,28011.0,28010.0,0.00285764]
[1680721321507,0.52607256,28011.0,28010.0,0.00285764]
[1680721322543,0.52607256,28011.0,28010.0,0.00273764]
[1680721323282,0.52607256,28011.0,28010.0,0.08803733]
[1680721323527,0.021,28011.0,28010.0,0.08803733]
[1680721324589,0.021,28011.0,28010.0,0.13105233]
[1680721327365,0.021,28011.0,28010.0,0.21647683]
[1680721327997,0.021,28011.0,28010.0,0.13105233]
[1680721328445,0.021,28011.0,28010.0,0.21647683]
[1680721328876,0.021,28011.0,28010.0,0.13105233]
[1680721329076,0.021,28011.0,28010.0,0.21647683]
[1680721330174,0.021,28011.0,28010.0,0.13105233]
[1680721330392,0.021,28011.0,28010.0,0.21647683]
[1680721330882,0.021,28011.0,28010.0,0.34461359]
[1680721331097,0.021,28011.0,28010.0,0.21647683]
[1680721332779,0.021,28011.0,28010.0,0.2594339]
[1680721332943,0.021,28011.0,28010.0,0.61012165]
[1680721333909,0.1,28016.0,28010.0,0.68361912]
[1680721334110,0.45471056,28016.0,28012.0,0.08536951]
[1680721334537,0.84409228,28016.0,28012.0,0.08536951]
[1680721335328,0.84409228,28016.0,28013.0,0.08536951]
[1680721335769,0.84509228,28016.0,28013.0,0.16349176]
[1680721336825,0.84409228,28016.0,28013.0,0.16349176]
[1680721337042,0.052409,28015.0,28014.0,0.08536951]
[1680721337251,0.85239228,28016.0,28014.0,0.08536951]
[1680721337458,0.85209228,28016.0,28014.0,0.08536951]
[1680721337668,0.84409228,28016.0,28014.0,0.08536951]
[1680721337892,0.015,28015.0,28014.0,0.08536951]
[1680721338281,0.84409228,28016.0,28014.0,0.08536951]
[1680721338495,0.50438172,28016.0,28014.0,0.08536951]
[1680721338744,0.48938172,28016.0,28014.0,0.08536951]
[1680721338959,0.38938172,28016.0,28014.0,0.21342377]
[1680721339171,0.38968172,28016.0,28014.0,0.08536951]
[1680721339383,0.38938172,28016.0,28014.0,0.08536951]
[1680721340131,0.015,28015.0,28014.0,0.08542951]
[1680721340344,0.1,28015.0,28014.0,0.08542951]
[1680721340967,0.150886,28015.0,28014.0,0.08542951]
[1680721341175,0.150886,28015.0,28014.0,0.08548951]
[1680721341388,0.167407,28015.0,28014.0,0.08548951]
[1680721341597,0.168286,28015.0,28014.0,0.08548951]
[1680721342853,0.068586,28015.0,28013.0,0.29491034]
[1680721343060,0.015,28015.0,28013.0,0.12406133]
[1680721343269,0.3873815,28015.0,28013.0,0.12406133]
[1680721343483,0.054001,28014.0,28013.0,0.12406133]
[1680721344378,0.40302727,28014.0,28013.0,0.12406133]
[1680721344772,0.34902627,28014.0,28013.0,0.12406133]
[1680721345569,0.40839427,28014.0,28013.0,0.12406133]
[1680721345767,0.76310483,28014.0,28013.0,0.12406133]